Workbook

Sheet Oświata
A1: Numer punktu poboru | B1: Adres punktu poboru | D1: Nazwa układu pomiarowego | E1: Rodzaj umowy | F1: Produkt | G1: Moc umowna | H1: Numer licznika | I1: Numer PPE | J1: Szacunkowe zużycie roczne (kWh)
A2: 85-0003814 | B2: UL. WITOSA 9 | C2: 42-110 WĄSOSZ GÓRNY | D2: GMINNY ZESPÓŁ SZKOLNO-PRZEDSZKOLNY NR 2 W WĄSOSZU GÓRNYM | E2: Dystrybucyjna | F2: C12b | G2: 20 | H2: 90216084 | I2: ENID_3051032806 | J2: 2388
A3: 85-0003815 | B3: UL. WITOSA 11 | C3: 42-110 WĄSOSZ GÓRNY | D3: GMINNY ZESPÓŁ SZKOLNO-PRZEDSZKOLNY NR 2 W WĄSOSZU GÓRNYM | E3: Dystrybucyjna | F3: C11 | G3: 40 | H3: 93373556 | I3: ENID_3051032807 | J3: 13218
A4: 85-0003820 | B4: SZKOLNA 8 | C4: 42-110 ZAWADY | D4: GMINNY ZESPÓŁ SZKOLNO-PRZEDSZKOLNY W ZAWADACH | E4: Dystrybucyjna | F4: C11 | G4: 26 | H4: 71228670 | I4: ENID_3051032976 | J4: 10832
A5: 85-0003821 | B5: SZKOLNA 8 | C5: 42-110 ZAWADY | D5: GMINNY ZESPÓŁ SZKOLNO-PRZEDSZKOLNY W ZAWADACH | E5: Dystrybucyjna | F5: C11 | G5: 40 | H5: 71228671 | I5: ENID_3051032978 | J5: 16819
A6: 85-0003845 | B6: Długosza 7 | C6: 42-110 POPÓW | D6: GMINNY ZESPÓŁ SZKOLNO- PRZEDSZKOLNY NR 1 W POPOWIE | E6: Dystrybucyjna | F6: C11 | G6: 40 | H6: 90835621 | I6: ENID_3051034705 | J6: 9134
A7: 85-0003826 | B7: UL. SZKOLNA 1 | C7: 42-110 WIĘCKI | D7: GMINNY ZESPÓŁ SZKOLNO- PRZEDSZKOLNY NR 4 W WIĘCKACH | E7: Dystrybucyjna | F7: C11 | G7: 32 | H7: 71656168 | I7: ENID_3051033226 | J7: 11997
A8: 85-0003827 | B8: UL. SZKOLNA 1 | C8: 42-110 RĘBIELICE KRÓLEWSKIE | D8: GMINNY ZESPÓŁ SZKOLNO-PRZEDSZKOLNY NR 3 W RĘBIELICACH KRÓLEW | E8: Dystrybucyjna | F8: C11 | G8: 40 | H8: 71228643 | I8: ENID_3051033227 | J8: 6196

Sheet Obiekty
A1: Numer punktu poboru | B1: Adres punktu poboru | D1: Nazwa układu pomiarowego | E1: Rodzaj umowy | F1: Grupa taryfowa dystrybucyjna/ Grupa pomiarowa | G1: Moc umowna | H1: Sumer licznika | I1: Numer PPE | J1: Szacunkowe zużycie roczne (kWh)
B2: ZAWADY UL. CZĘSTOCHOWSKA 6 | C2: 42-110 POPÓW | D2: OCZYSZCZANIA ŚCIEKÓW | E2: Dystrybucyjna | F2: B21 | G2: 100 | H2: 50579552 | I2: ENID_3051011076 | J2: 260000
A3: 85-8507011 | B3: ZAWADY,UL. SPOKOJNA dz.120/2 | C3: 42-110 POPÓW | D3: PRZEPOMPOWNIA ŚCIEKÓW | E3: Dystrybucyjna | F3: C11 | G3: 11 | H3: 71934342 | I3: PLTAUD285000956164 | J3: 108
A4: 85-8507004 | B4: ZAWADY, UL. WYPOCZYNKOWA dz. 1002/1 | C4: 42-110 POPÓW | D4: PRZEPOMPOWNIA ŚCIEKÓW | E4: Dystrybucyjna | F4: C11 | G4: 11 | H4: 71934330 | I4: PLTAUD285003607084 | J4: 359
A5: 85-8512001 | B5: POPÓW, UL. PCK nr dz. 283 | C5: 42-110 POPÓW | D5: STUDNIA GŁĘBIOWA | E5: Dystrybucyjna | F5: C11 | G5: 22 | H5: 97610213 | I5: PLTAUD285004219667 | J5: 12757
A6: 85-8512199 | B6: KAMIEŃSZCZYZNA,UL. LIPOWA dz. 172/1 | C6: 42-110 POPÓW | D6: PRZEPOMPOWNIA ŚCIEKÓW | E6: Dystrybucyjna | F6: C11 | G6: 14 | H6: 72132878 | I6: PLTAUD285005223848 | J6: 848
A7: 85-8512200 | B7: KAMIEŃSZCZYZNA, UL. NADRZECZNA DZ. 48/2 | C7: 42-110 POPÓW | D7: PRZEPOMPOWNIA ŚCIEKÓW | E7: Dystrybucyjna | F7: C11 | G7: 29 | H7: 72132899 | I7: PLTAUD285005223775 | J7: 17172
A8: 85-0003038 | B8: ZBORY, UL. SPOKOJNA | C8: 42-110 POPÓW | D8: REMIZA OSP ZBORY | E8: Dystrybucyjna | F8: C11 | G8: 17 | H8: 71173473 | I8: ENID_3051023267 | J8: 6112
A9: 85-0003039 | B9: POPÓW, UL. SZLACHECKA 16 | C9: 42-110 POPÓW | D9: PRZEPOMPOWNIA ŚCIEKÓW | E9: Dystrybucyjna | F9: C11 | G9: 14 | H9: 71173457 | I9: ENID_3051023268 | J9: 123
A10: 85-0003042 | B10: ZBORY, UL. SPOKOJNA 98 | C10: 42-110 POPÓW | D10: PRZEPOMPOWNIA ŚCIEKÓW P1 | E10: Dystrybucyjna | F10: C11 | G10: 18 | H10: 70585335 | I10: ENID_3051023271 | J10: 1985
A11: 85-0003045 | B11: DĘBIE dz.207 | C11: 42-110 POPÓW | D11: REMIZA OSP / ŚWIETLICA WIEJSKA | E11: Dystrybucyjna | F11: C11 | G11: 14 | H11: 70563642 | I11: ENID_3051023275 | J11: 2176
A12: 85-0003046 | B12: BRZÓZKI 30 | C12: 42-110 POPÓW | D12: ŚWIETLICA WIEJSKA | E12: Dystrybucyjna | F12: C11 | G12: 16 | H12: 71173472 | I12: ENID_3051023276 | J12: 4170
A13: 85-0003047 | B13: DĄBRÓWKA | C13: 42-110 POPÓW | D13: PRZEPOMPOWNIA ŚCIEKÓW P1 | E13: Dystrybucyjna | F13: C11 | G13: 14 | H13: 71173225 | I13: ENID_3051023277 | J13: 3162
A14: 85-0003048 | B14: POPÓW , UL.STRAŻACKA | C14: 42-110 POPÓW | D14: BIBLIOTEKA | E14: Dystrybucyjna | F14: C11 | G14: 33 | H14: 71173478 | I14: ENID_3051023278 | J14: 5051
A15: 85-0003049 | B15: POPÓW, UL. REYMONTA | C15: 42-110 POPÓW | D15: PRZEPOMPOWNIA ŚCIEKÓW | E15: Dystrybucyjna | F15: C11 | G15: 14 | H15: 70585368 | I15: ENID_3051023279 | J15: 817
A16: 85-0003050 | B16: RĘBIELICE KRÓLEWSKIE, UL.GŁÓWNA 64 | C16: 42-110 POPÓW | D16: REMIZA OSP | E16: Dystrybucyjna | F16: C11 | G16: 17 | H16: 70698714 | I16: ENID_3051023280 | J16: 1031
A17: 85-0003051 | B17: ZAWADY, UL. CZĘSTOCHOWSKA 6 | C17: 42-110 POPÓW | D17: HYDROFORNIA | E17: Dystrybucyjna | F17: C12a | G17: 33 | H17: 97610454 | I17: ENID_3051023281 | J17: 40326
A18: 85-0003052 | B18: ZAWADY UL. TURYSTYCZNA | C18: 42-110 POPÓW | D18: PRZEPOMPOWNIA ŚCIEKÓW | E18: Dystrybucyjna | F18: C11 | G18: 20 | H18: 71173240 | I18: ENID_3051023282 | J18: 5818
A19: 85-0003053 | B19: ZAWADY UL. KORNELA MAKUSZYŃSKIEGO | C19: 42-110 POPÓW | D19: PRZEPOMPOWNIA ŚCIEKÓW | E19: Dystrybucyjna | F19: C11 | G19: 25 | H19: 70884428 | I19: ENID_3051023283 | J19: 2718
A20: 85-0003055 | B20: RĘBIELICE KRÓLEWSKIE, UL. GŁÓWNA 64 | C20: 42-110 POPÓW | D20: OSP SYRENY | E20: Dystrybucyjna | F20: C12b | G20: 33 | H20: 70698767 | I20: ENID_3051023285 | J20: 3586
A21: 85-0003057 | B21: ZAWADY, UL. SZKOLNA 0 | C21: 42-110 POPÓW | D21: PRZEPOMPOWNIA ŚCIEKÓW | E21: Dystrybucyjna | F21: C11 | G21: 16 | H21: 71173219 | I21: ENID_3051023287 | J21: 3658
A22: 85-0003058 | B22: DĘBIE | C22: 42-110 POPÓW | D22: REMIZA OSP | E22: Dystrybucyjna | F22: C12b | G22: 10 | H22: 70823719 | I22: ENID_3051023289 | J22: 1476
A23: 85-0003059 | B23: POPÓW, UL. STRAŻACKA 51 | C23: 42-110 POPÓW | D23: REMIZA OSP | E23: Dystrybucyjna | F23: C11 | G23: 16 | H23: 71173217 | I23: ENID_3051023290 | J23: 412
A24: 85-0003060 | B24: NOWA WIEŚ 41 | C24: 42-110 POPÓW | D24: ŚWIETLICA WIEJSKA | E24: Dystrybucyjna | F24: C11 | G24: 14 | H24: 71173475 | I24: ENID_3051023292 | J24: 3274
A25: 85-0003062 | B25: MARIANÓW 15 | C25: 42-110 POPÓW | D25: ŚWIETLICA WIEJSKA | E25: Dystrybucyjna | F25: C11 | G25: 17 | H25: 71173209 | I25: ENID_3051023305 | J25: 314
A26: 85-0003063 | B26: WĄSOSZ GÓRNY UL. NIEPODLEGŁOŚCI | C26: 42-110 POPÓW | D26: REMIZA OSP | E26: Dystrybucyjna | F26: C11 | G26: 14 | H26: 71173495 | I26: ENID_3051023306 | J26: 10768
A27: 85-0003065 | B27: DĄBROWA | C27: 42-110 POPÓW | D27: ŚWIETLICA WIEJSKA | E27: Dystrybucyjna | F27: C11 | G27: 17 | H27: 71173205 | I27: ENID_3051023308 | J27: 2287
A28: 85-0003066 | B28: UL. POPÓW, UL. WIELUŃSKA | C28: 42-110 POPÓW | D28: PRZEPOMPOWNIA ŚCIEKÓW | E28: Dystrybucyjna | F28: C11 | G28: 17 | H28: 71173500 | I28: ENID_3051023309 | J28: 8149
A29: 85-0003067 | B29: UL. POPÓW, UL. PAJĘCZAŃSKA | C29: 42-110 POPÓW | D29: PRZEPOMPOWNIA ŚCIEKÓW | E29: Dystrybucyjna | F29: C12a | G29: 14 | H29: 71173496 | I29: ENID_3051023310 | J29: 3370
A30: 85-0003070 | B30: POPÓW DĘBIE dz. 265 | C30: 42-110 POPÓW | D30: PRZEPOMPOWNIA ŚCIEKÓW | E30: Dystrybucyjna | F30: C11 | G30: 14 | H30: 71173497 | I30: ENID_3051023387 | J30: 90
A31: 85-0003333 | B31: POPÓW, UL. PCK 6 | C31: 42-110 POPÓW | D31: BIURO, OŚWIETLENIE ULICZNE | E31: Dystrybucyjna | F31: C12b | G31: 9 | H31: 70584996 | I31: ENID_3051025948 | J31: 56.25
A32: 85-0003043 | B32: DĄBROWA | C32: 42-110 POPÓW | D32: HYDROFORNIA | E32: Dystrybucyjna | F32: C12a | G32: 26 | H32: 93931334 | I32: ENID_3051023272 | J32: 63581
A33: 85-0003054 | B33: DĘBIE DZ. 126 P1 | C33: 42-110 POPÓW | D33: PRZEPOMPOWNIA ŚCIEKÓW | E33: Dystrybucyjna | F33: C11 | G33: 9 | H33: 12464649 | I33: ENID_3051023284 | J33: 2623
A34: 85-0003064 | B34: WIĘCKI, UL.DŁUGA | C34: 42-110 POPÓW | D34: REMIZA OSP | E34: Dystrybucyjna | F34: C11 | G34: 17 | H34: 90169218 | I34: ENID_3051023307 | J34: 4180
A35: 85-0003061 | B35: WIĘCKI, UL. AKACJOWA | C35: 42-110 POPÓW | D35: GMINA POPÓW- HYDROFORNIA | E35: Dystrybucyjna | F35: C12a | G35: 33 | H35: 95949088 | I35: ENID_3051023294 | J35: 52276
A36: 85-0003044 | B36: POPÓW | C36: 42-110 POPÓW | D36: HYDROFORNIA | E36: Dystrybucyjna | F36: C12a | G36: 13 | H36: 95417600 | I36: ENID_3051023273 | J36: 45774
A37: 85-0003418 | B37: BRZÓZKI dz.512 | C37: 42-110 POPÓW | D37: PRZEPOMPOWNIA ŚCIEKÓW | E37: Dystrybucyjna | F37: C11 | G37: 11 | H37: 71208000 | I37: ENID_3051027649 | J37: 2514
A38: 85-0003419 | B38: BRZÓZKI dz.512 | C38: 42-110 POPÓW | D38: PRZEPOMPOWNIA ŚCIEKÓW | E38: Dystrybucyjna | F38: C11 | G38: 14 | H38: 71207987 | I38: ENID_3051027650 | J38: 103
A39: 85-0003420 | B39: BRZÓZKI dz.512 | C39: 42-110 POPÓW | D39: PRZEPOMPOWNIA ŚCIEKÓW | E39: Dystrybucyjna | F39: C11 | G39: 11 | H39: 47765840 | I39: ENID_3051027651 | J39: 6117
A40: 85-0003472 | B40: ZAWADY,UL. CZĘSTOCHOWSKA 6 | C40: 42-110 POPÓW | D40: POMPY CIEPŁA | E40: Dystrybucyjna | F40: C12b | G40: 33 | H40: 97610452 | I40: ENID_3051027745 | J40: 34461
A41: 85-0003421 | B41: RĘBIELICE KRÓLEWSKIE, UL. SZKOLNA | C41: 42-110 POPÓW | D41: POMPY CIEPŁA | E41: Dystrybucyjna | F41: C11 | G41: 17 | H41: 47732311 | I41: ENID_3051027652 | J41: 10129
A42: 85-0004867 | B42: KAMIEŃSZCZYZNA, UL. KRÓLEWSKA 2 | C42: 42-110 POPÓW | D42: SWIETLICA WIEJSKA | E42: Dystrybucyjna | F42: C11 | G42: 5 | H42: 80978522 | I42: ENID_3051056106 | J42: 64
A43: 85-0004825 | B43: ANNOLESIE 125 | C43: 42-110 POPÓW | D43: PRZEPOMPOWNIA ŚCIEKÓW | E43: Dystrybucyjna | F43: C12b | G43: 9 | H43: 71449754 | I43: ENID_3051054746 | J43: 1767
A44: 85-0004823 | B44: MARIANÓW 13 | C44: 42-110 POPÓW | D44: PRZEPOMPOWNIA ŚCIEKÓW | E44: Dystrybucyjna | F44: C12b | G44: 7 | H44: 91316976 | I44: ENID_3051054744 | J44: 361
A45: 85-8512003 | B45: FLORIANÓW dz. 92/3 | C45: 42-110 POPÓW | D45: BUDYNEK GOSPODARCZY/ŚWIETLICA | E45: Dystrybucyjna | F45: C12B | G45: 6 | H45: 81068240 | I45: PLTAUD285000270430 | J45: 200
A46: 85-8512019 | B46: KULE | C46: 42-110 POPÓW | D46: OŚRODEK KOLONIJNY | E46: Dystrybucyjna | F46: C11 | G46: 20 | H46: 13708914 | I46: PLTAUD285003695162 | J46: 0
A47: 85-0004824 | B47: ANNOLESIE 164 | C47: 42-110 POPÓW | D47: PRZEPOMPOWNIA ŚCIEKÓW | E47: Dystrybucyjna | F47: C12b | G47: 9 | H47: 71462165 | I47: ENID_3051054745 | J47: 600
A48: 85-0004822 | B48: MARIANÓW 25 | C48: 42-110 POPÓW | D48: PRZEPOMPOWNIA ŚCIEKÓW | E48: Dystrybucyjna | F48: C12B | G48: 9 | H48: 71451928 | I48: ENID_3051054743 | J48: 643

Sheet Oświetlenie
A1: Numer punktu poboru | B1: Adres punktu poboru | D1: Nazwa układu pomiarowego | E1: Grupa taryfowa dystrybucyjna/ Grupa pomiarowa | F1: Moc umowna | G1: Numer licznika | H1: Numer PPE | J1: Szacunkowe zużycie roczne (kWh)
A2: 85-0002986 | B2: POPÓW, UL. WIELUŃSKA skrzy/DW491 | C2: 42-110 POPÓW | D2: Oświetlenie uliczne (S-171) | E2: C12b | F2: 6 | G2: 51878056 | H2: ENID_3051023209 | I2: 5105 | J2: =I2*2 -> 10210
A3: 85-0002987 | B3: ANNOLESIE | C3: 42-110 POPÓW | D3: Oświetlenie uliczne (S-001) | E3: C12b | F3: 2 | G3: 51878019 | H3: ENID_3051023210 | I3: 2491 | J3: =I3*2 -> 4982
A4: 85-0002988 | B4: BRZÓZKI | C4: 42-110 POPÓW | D4: Oświetlenie uliczne (S-200) | E4: C12b | F4: 3 | G4: 51861694 | H4: ENID_3051023211 | I4: 2190 | J4: =I4*2 -> 4380
A5: 85-0002989 | B5: DĄBROWA | C5: 42-110 POPÓW | D5: Oświetlenie uliczne (S-176) | E5: C12b | F5: 3 | G5: 51860769 | H5: ENID_3051023212 | I5: 3094 | J5: =I5*2 -> 6188
A6: 85-0002990 | B6: DĄBRÓWKA | C6: 42-110 POPÓW | D6: Oświetlenie uliczne (S-367) | E6: C12b | F6: 3 | G6: 51861665 | H6: ENID_3051023213 | I6: 2015 | J6: =I6*2 -> 4030
A7: 85-0002991 | B7: DĘBIE | C7: 42-110 POPÓW | D7: Oświetlenie uliczne (S-017) | E7: C12b | F7: 3 | G7: 51861690 | H7: ENID_3051023214 | I7: 1909 | J7: =I7*2 -> 3818
A8: 85-0002992 | B8: KAMIEŃSZCZYZNA | C8: 42-110 POPÓW | D8: Oświetlenie uliczne (S-047) | E8: C12b | F8: 3 | G8: 51861288 | H8: ENID_3051023215 | I8: 2461 | J8: =I8*2 -> 4922
A9: 85-0002993 | B9: KULE | C9: 42-110 POPÓW | D9: Oświetlenie uliczne (S-204) | E9: C12b | F9: 3 | G9: 51861688 | H9: ENID_3051023216 | I9: 3788 | J9: =I9*2 -> 7576
A10: 85-0002994 | B10: LELEITY KOŁO PŁACZEK | C10: 42-110 POPÓW | D10: Oświetlenie uliczne (S-202) | E10: C12b | F10: 2 | G10: 51878064 | H10: ENID_3051023217 | I10: 604 | J10: =I10*2 -> 1208
A11: 85-0002995 | B11: MIEDZNO PKP | C11: 42-110 POPÓW | D11: Oświetlenie uliczne (S-386) | E11: C12b | F11: 3 | G11: 51878046 | H11: ENID_3051023218 | I11: 1988 | J11: =I11*2 -> 3976
A12: 85-0002996 | B12: NOWA WIEŚ | C12: 42-110 POPÓW | D12: Oświetlenie uliczne (S-517) | E12: C12b | F12: 1 | G12: 51878011 | H12: ENID_3051023219 | I12: 1493 | J12: =I12*2 -> 2986
A13: 85-0002997 | B13: NOWA WIEŚ | C13: 42-110 POPÓW | D13: Oświetlenie uliczne (S-203) | E13: C12b | F13: 2 | G13: 51860779 | H13: ENID_3051023220 | I13: 1383 | J13: =I13*2 -> 2766
A14: 85-0002998 | B14: PŁACZKI | C14: 42-110 POPÓW | D14: Oświetlenie uliczne (S-201) | E14: C12b | F14: 2 | G14: 51877816 | H14: ENID_3051023221 | I14: 871 | J14: =I14*2 -> 1742
A15: 85-0002999 | B15: POPÓW WIEŚ | C15: 42-110 POPÓW | D15: Oświetlenie uliczne (S-368) | E15: C12b | F15: 2 | G15: 51861301 | H15: ENID_3051023222 | I15: 2620 | J15: =I15*2 -> 5240
A16: 85-0003001 | B16: POPÓW OSIEDLE | C16: 42-110 POPÓW | D16: Oświetlenie uliczne (S-359) | E16: C12b | F16: 3 | G16: 51878043 | H16: ENID_3051023223 | I16: 3525 | J16: =I16*2 -> 7050
A17: 85-0003002 | B17: RĘBIELICE KRÓLEWSKIE | C17: 42-110 POPÓW | D17: Oświetlenie uliczne (S-079) | E17: C12b | F17: 3 | G17: 51861292 | H17: ENID_3051023224 | I17: 2560 | J17: =I17*2 -> 5120
A18: 85-0003003 | B18: RĘBIELICE KRÓLEWSKIE | C18: 42-110 POPÓW | D18: Oświetlenie uliczne (S-080) | E18: C12b | F18: 4 | G18: 51861280 | H18: ENID_3051023225 | I18: 4631 | J18: =I18*2 -> 9262
A19: 85-0003004 | B19: RĘBIELICE KRÓLEWSKIE | C19: 42-110 POPÓW | D19: Oświetlenie uliczne (S-081) | E19: C12b | F19: 4 | G19: 51861264 | H19: ENID_3051023226 | I19: 2653 | J19: =I19*2 -> 5306
A20: 85-0003005 | B20: KAMIEŃSZCZYZNA | C20: 42-110 POPÓW | D20: Oświetlenie uliczne (S-478) | E20: C12b | F20: 1 | G20: 51878066 | H20: ENID_3051023227 | I20: 754 | J20: =I20*2 -> 1508
A21: 85-0003006 | B21: RĘBIELICE KRÓLEWSKIE | C21: 42-110 POPÓW | D21: Oświetlenie uliczne (S-401) | E21: C12b | F21: 4 | G21: 51860759 | H21: ENID_3051023228 | I21: 2798 | J21: =I21*2 -> 5596
A22: 85-0003007 | B22: RĘBIELICE KRÓLEWSKIE | C22: 42-110 POPÓW | D22: Oświetlenie uliczne (S-402) | E22: C12b | F22: 2 | G22: 51860752 | H22: ENID_3051023229 | I22: 1377 | J22: =I22*2 -> 2754
A23: 85-0003008 | B23: RĘBIELICE KRÓLEWSKIE | C23: 42-110 POPÓW | D23: Oświetlenie uliczne (S-403) | E23: C12b | F23: 1 | G23: 51878047 | H23: ENID_3051023230 | I23: 918 | J23: =I23*2 -> 1836
A24: 85-0003009 | B24: WRZOSY | C24: 42-110 POPÓW | D24: Oświetlenie uliczne (S-315) | E24: C12b | F24: 2 | G24: 51878026 | H24: ENID_3051023231 | I24: 3321 | J24: =I24*2 -> 6642
A25: 85-0003010 | B25: ZAWADY | C25: 42-110 POPÓW | D25: Oświetlenie uliczne (S-119) | E25: C12b | F25: 2 | G25: 51861603 | H25: ENID_3051023232 | I25: 1912 | J25: =I25*2 -> 3824
A26: 85-0003011 | B26: WĄSOSZ DOLNY | C26: 42-110 POPÓW | D26: Oświetlenie uliczne (S-115) | E26: C12b | F26: 4 | G26: 51861696 | H26: ENID_3051023233 | I26: 2345 | J26: =I26*2 -> 4690
A27: 85-0003012 | B27: WĄSOSZ DOLNY | C27: 42-110 POPÓW | D27: Oświetlenie uliczne (S-113) | E27: C12b | F27: 3 | G27: 51878032 | H27: ENID_3051023234 | I27: 1413 | J27: =I27*2 -> 2826
A28: 85-0003013 | B28: WĄSOSZ GÓRNY | C28: 42-110 POPÓW | D28: Oświetlenie uliczne (S-114) | E28: C12b | F28: 2 | G28: 51877807 | H28: ENID_3051023235 | I28: 3134 | J28: =I28*2 -> 6268
A29: 85-0003014 | B29: WĄSOSZ GÓRNY | C29: 42-110 POPÓW | D29: Oświetlenie uliczne (S-414) | E29: C12b | F29: 2 | G29: 51860755 | H29: ENID_3051023236 | I29: 1906 | J29: =I29*2 -> 3812
A30: 85-0003015 | B30: WĄSOSZ GÓRNY | C30: 42-110 POPÓW | D30: Oświetlenie uliczne (S-413) | E30: C12b | F30: 3 | G30: 51861622 | H30: ENID_3051023237 | I30: 6044 | J30: =I30*2 -> 12088
A31: 85-0003016 | B31: POPÓW | C31: 42-110 POPÓW | D31: Oświetlenie uliczne (S-146) | E31: C12b | F31: 2 | G31: 51861573 | H31: ENID_3051023238 | I31: 2615 | J31: =I31*2 -> 5230
A32: 85-0003017 | B32: ZAWADY | C32: 42-110 POPÓW | D32: Oświetlenie uliczne (S-171) | E32: C12b | F32: 9 | G32: 51860756 | H32: ENID_3051023239 | I32: 14422 | J32: =I32*2 -> 28844
A33: 85-0003018 | B33: ZAWADY | C33: 42-110 POPÓW | D33: Oświetlenie uliczne (S-172) | E33: C12b | F33: 4 | G33: 51860763 | H33: ENID_3051023240 | I33: 3486 | J33: =I33*2 -> 6972
A34: 85-0003019 | B34: ZAWADY | C34: 42-110 POPÓW | D34: Oświetlenie uliczne (S-173) | E34: C12b | F34: 3 | G34: 51878038 | H34: ENID_3051023241 | I34: 3103 | J34: =I34*2 -> 6206
A35: 85-0003020 | B35: ZBORY | C35: 42-110 POPÓW | D35: Oświetlenie uliczne (S-370) | E35: C12b | F35: 2 | G35: 51860760 | H35: ENID_3051023242 | I35: 2756 | J35: =I35*2 -> 5512
A36: 85-0003021 | B36: POPÓW | C36: 42-110 POPÓW | D36: Oświetlenie uliczne (S-120) | E36: C12b | F36: 4 | G36: 51861263 | H36: ENID_3051023243 | I36: 3013 | J36: =I36*2 -> 6026
A37: 85-0003022 | B37: FLORIANÓW | C37: 42-110 POPÓW | D37: Oświetlenie uliczne (S-002) | E37: C12b | F37: 2 | G37: 51878050 | H37: ENID_3051023244 | I37: 1377 | J37: =I37*2 -> 2754
A38: 85-0003023 | B38: WIĘCKI | C38: 42-110 POPÓW | D38: Oświetlenie uliczne (S-417) | E38: C12b | F38: 1 | G38: 51860768 | H38: ENID_3051023245 | I38: 1674 | J38: =I38*2 -> 3348
A39: 85-0003024 | B39: POPÓW PARCELA | C39: 42-110 POPÓW | D39: Oświetlenie uliczne (S-358) | E39: C12b | F39: 1 | G39: 51878058 | H39: ENID_3051023246 | I39: 1881 | J39: =I39*2 -> 3762
A40: 85-0003025 | B40: KAMIEŃSZCZYZNA | C40: 42-110 POPÓW | D40: Oświetlenie uliczne (S-496) | E40: C12b | F40: 2 | G40: 51861283 | H40: ENID_3051023247 | I40: 1658 | J40: =I40*2 -> 3316
A41: 85-0003026 | B41: ZAWADY | C41: 42-110 POPÓW | D41: Oświetlenie uliczne (S-513) | E41: C12b | F41: 5 | G41: 51861275 | H41: ENID_3051023248 | I41: 3967 | J41: =I41*2 -> 7934
A42: 85-0003027 | B42: BRZÓZKI | C42: 42-110 POPÓW | D42: Oświetlenie uliczne (S-512) | E42: C12b | F42: 3 | G42: 51861655 | H42: ENID_3051023249 | I42: 2040 | J42: =I42*2 -> 4080
A43: 85-0003028 | B43: WIĘCKI | C43: 42-110 POPÓW | D43: Oświetlenie uliczne (S-418) | E43: C12b | F43: 2 | G43: 51860751 | H43: ENID_3051023251 | I43: 1383 | J43: =I43*2 -> 2766
A44: 85-0003029 | B44: WĄSOSZ GÓRNY | C44: 42-110 POPÓW | D44: Oświetlenie uliczne (S-416) | E44: C12b | F44: 1 | G44: 51878048 | H44: ENID_3051023252 | I44: 2226 | J44: =I44*2 -> 4452
A45: 85-0003030 | B45: ZAWADY, UL. PIWNA | C45: 42-110 POPÓW | D45: Oświetlenie uliczne (S-543) | E45: C12b | F45: 2 | G45: 51861295 | H45: ENID_3051023253 | I45: 3682 | J45: =I45*2 -> 7364
A46: 85-0003031 | B46: NOWA WIEŚ | C46: 42-110 POPÓW | D46: Oświetlenie uliczne (S-517) | E46: C12b | F46: 1 | G46: 51860761 | H46: ENID_3051023254 | I46: 0 | J46: =I46*2 -> 0
A47: 85-0003032 | B47: DĘBIE | C47: 42-110 POPÓW | D47: Oświetlenie uliczne (S-745) | E47: C12b | F47: 1 | G47: 51878025 | H47: ENID_3051023255 | I47: 1224 | J47: =I47*2 -> 2448
A48: 85-0003033 | B48: WĄSOSZ GÓRNY UL. ZAMOJSKIEGO | C48: 42-110 POPÓW | D48: Oświetlenie uliczne (S-723) | E48: C12b | F48: 1 | G48: 51878024 | H48: ENID_3051023256 | I48: 1291 | J48: =I48*2 -> 2582
A49: 85-0003034 | B49: ZAWADY, UL. PIWNA | C49: 42-110 POPÓW | D49: Oświetlenie uliczne (S-172) | E49: C12b | F49: 1 | G49: 51878030 | H49: ENID_3051023257 | I49: 592 | J49: =I49*2 -> 1184
A50: 85-0003035 | B50: ZAWADY KOLEJOWA | C50: 42-110 POPÓW | D50: Oświetlenie uliczne (S-229) | E50: C12b | F50: 3 | G50: 51878006 | H50: ENID_3051023258 | I50: 217 | J50: =I50*2 -> 434
A51: 85-0003036 | B51: WĄSOSZ MARIANÓW | C51: 42-110 POPÓW | D51: Oświetlenie uliczne (S-415) | E51: C12b | F51: 2 | G51: 51861699 | H51: ENID_3051023259 | I51: 2113 | J51: =I51*2 -> 4226
A52: 85-0003037 | B52: POPÓW | C52: 42-110 POPÓW | D52: Oświetlenie uliczne (S-419) | E52: C12b | F52: 2 | G52: 51861674 | H52: ENID_3051023260 | I52: 1706 | J52: =I52*2 -> 3412
A53: 85-0003101 | B53: POPÓW | C53: 42-110 POPÓW | D53: Oświetlenie uliczne (S-519) | E53: C12b | F53: 2 | G53: 51861286 | H53: ENID_3051023745 | I53: 1095 | J53: =I53*2 -> 2190
A54: 85-0003922 | B54: ZAWADY, UL.TURYSTYCZNA | C54: 42-110 POPÓW | D54: Oświetlenie uliczne | E54: C12b | F54: 1 | G54: 51877994 | H54: ENID_3051038366 | I54: 55 | J54: =I54*2 -> 110
A55: 85-0003923 | B55: ZAWADY, UL. DWORCOWA | C55: 42-110 POPÓW | D55: Oświetlenie uliczne | E55: C12b | F55: 1 | G55: 67466749 | H55: ENID_3051038367 | I55: 162 | J55: =I55*2 -> 324
A56: 85-9059002 | B56: ZAWADY, UL. SPOKOJNA | C56: 42-110 POPÓW | D56: Oświetlenie uliczne | E56: O11 | F56: 8 | G56: 51877298 | H56: PLTAUD285001487622 | I56: 2212 | J56: =I56*2 -> 4424
A57: 85-9059001 | B57: NOWA WIEŚ NR SŁUPA 52 | C57: 42-110 POPÓW | D57: Oświetlenie uliczne | E57: O11 | F57: 2 | G57: 51878020 | H57: PLTAUD285003604580 | I57: 815 | J57: =I57*2 -> 1630
A58: 85-0003068 | B58: WĄSOSZ GÓRNY, UL. KALWARYJSKA dz. 259/6 | C58: 42-110 POPÓW | D58: Oświetlenie uliczne Kalwarii Wąsowskiej | E58: O11 | F58: 11 | G58: 67469332 | H58: ENID_3051023311 | I58: 2827 | J58: =I58*2 -> 5654
